﻿Hospitality,First Name,Last Name,Honorific Title,Role,Caucus,Date,Purpose of Hospitality,Location,Total of Attendees,Supplier,Total
"2HOS_10558 ",Anthony,Rota,Hon.,Speaker,-,2022/04/01,To meet with visitors of the office,Ottawa,0,Walmart,32.93
"2HOS_10558 ",Anthony,Rota,Hon.,Speaker,-,2022/04/01,To meet with visitors of the office,Ottawa,0,Metro,69.97
"2HOS_10558 ",Anthony,Rota,Hon.,Speaker,-,2022/04/01,To meet with visitors of the office,Ottawa,0,Loblaws Inc.,4.09
"2HOS_10558 ",Anthony,Rota,Hon.,Speaker,-,2022/04/01,To meet with visitors of the office,Ottawa,0,Amazon,56.62
"2HOS_10645 ",Anthony,Rota,Hon.,Speaker,-,2022/09/20,To host a business meeting,Ottawa,17,House of Commons Food Services — Services de restauration de la Chambre des communes,832
"2HOS_10644 ",Anthony,Rota,Hon.,Speaker,-,2022/09/26,To host an event / a reception,Gatineau,60,Costco,42.64
"2HOS_10644 ",Anthony,Rota,Hon.,Speaker,-,2022/09/26,To host an event / a reception,Gatineau,60,Lacombe Toilet Rentals,2086.67
"2HOS_10644 ",Anthony,Rota,Hon.,Speaker,-,2022/09/26,To host an event / a reception,Gatineau,60,Gateway City Brewing,319.73
"2HOS_10644 ",Anthony,Rota,Hon.,Speaker,-,2022/09/26,To host an event / a reception,Gatineau,60,Rebel Tents Inc,2438.33
"2HOS_10644 ",Anthony,Rota,Hon.,Speaker,-,2022/09/26,To host an event / a reception,Gatineau,60,New Ontario Brewing Co. Inc.,345.6
"2HOS_10644 ",Anthony,Rota,Hon.,Speaker,-,2022/09/26,To host an event / a reception,Gatineau,60,Canadian Tire,51.31
"2HOS_10644 ",Anthony,Rota,Hon.,Speaker,-,2022/09/26,To host an event / a reception,Gatineau,60,Thyme and Again Creative Catering,5038.15
"2HOS_10629 ",Anthony,Rota,Hon.,Speaker,-,2022/09/27,To host an event / a reception,Gatineau,225,Costco,42.64
"2HOS_10629 ",Anthony,Rota,Hon.,Speaker,-,2022/09/27,To host an event / a reception,Gatineau,225,Lacombe Toilet Rentals,2086.67
"2HOS_10629 ",Anthony,Rota,Hon.,Speaker,-,2022/09/27,To host an event / a reception,Gatineau,225,Gateway City Brewing,319.73
"2HOS_10629 ",Anthony,Rota,Hon.,Speaker,-,2022/09/27,To host an event / a reception,Gatineau,225,Rebel Tents Inc,2438.33
"2HOS_10629 ",Anthony,Rota,Hon.,Speaker,-,2022/09/27,To host an event / a reception,Gatineau,225,New Ontario Brewing Co. Inc.,345.6
"2HOS_10629 ",Anthony,Rota,Hon.,Speaker,-,2022/09/27,To host an event / a reception,Gatineau,225,Canadian Tire,51.31
"2HOS_10629 ",Anthony,Rota,Hon.,Speaker,-,2022/09/27,To host an event / a reception,Gatineau,225,Thyme and Again Creative Catering,18924.69
"2HOS_10629 ",Anthony,Rota,Hon.,Speaker,-,2022/09/27,To host an event / a reception,Gatineau,225,Jeff deValk,500
"2HOS_10641 ",Anthony,Rota,Hon.,Speaker,-,2022/09/28,To host an event / a reception,Gatineau,150,Costco,42.64
"2HOS_10641 ",Anthony,Rota,Hon.,Speaker,-,2022/09/28,To host an event / a reception,Gatineau,150,Lacombe Toilet Rentals,2086.66
"2HOS_10641 ",Anthony,Rota,Hon.,Speaker,-,2022/09/28,To host an event / a reception,Gatineau,150,Gateway City Brewing,319.74
"2HOS_10641 ",Anthony,Rota,Hon.,Speaker,-,2022/09/28,To host an event / a reception,Gatineau,150,Rebel Tents Inc,2438.33
"2HOS_10641 ",Anthony,Rota,Hon.,Speaker,-,2022/09/28,To host an event / a reception,Gatineau,150,New Ontario Brewing Co. Inc.,345.6
"2HOS_10641 ",Anthony,Rota,Hon.,Speaker,-,2022/09/28,To host an event / a reception,Gatineau,150,Canadian Tire,51.31
"2HOS_10641 ",Anthony,Rota,Hon.,Speaker,-,2022/09/28,To host an event / a reception,Gatineau,150,Thyme and Again Creative Catering,8504.02
"2HOS_10663 ",Anthony,Rota,Hon.,Speaker,-,2022/10/02,To host an event / a reception,Ottawa,150,House of Commons Food Services — Services de restauration de la Chambre des communes,2423.2
"2HOS_10686 ",Anthony,Rota,Hon.,Speaker,-,2022/10/03,To host an event / a reception,Ottawa,3,House of Commons Food Services — Services de restauration de la Chambre des communes,261.14
"2HOS_10651 ",Anthony,Rota,Hon.,Speaker,-,2022/10/05,To host a business meeting,Ottawa,2,House of Commons Food Services — Services de restauration de la Chambre des communes,86.54
"2HOS_10652 ",Anthony,Rota,Hon.,Speaker,-,2022/10/06,To host an event / a reception,Ottawa,10,House of Commons Food Services — Services de restauration de la Chambre des communes,539.73
"2HOS_10664 ",Anthony,Rota,Hon.,Speaker,-,2022/10/06,To host a business meeting,Ottawa,6,House of Commons Food Services — Services de restauration de la Chambre des communes,95.7
"2HOS_10675 ",Anthony,Rota,Hon.,Speaker,-,2022/10/25,To host an event / a reception,Ottawa,60,House of Commons Food Services — Services de restauration de la Chambre des communes,831.9
"2HOS_10674 ",Anthony,Rota,Hon.,Speaker,-,2022/10/26,To host an event / a reception,Ottawa,75,House of Commons Food Services — Services de restauration de la Chambre des communes,252
"2HOS_10727 ",Anthony,Rota,Hon.,Speaker,-,2022/11/01,To host a business meeting,Ottawa,5,House of Commons Food Services — Services de restauration de la Chambre des communes,95.7
"2HOS_10728 ",Anthony,Rota,Hon.,Speaker,-,2022/11/01,To host an event / a reception,Ottawa,16,House of Commons Food Services — Services de restauration de la Chambre des communes,1020
"2HOS_10723 ",Anthony,Rota,Hon.,Speaker,-,2022/11/04,To host an event / a reception,Ottawa,200,House of Commons Food Services — Services de restauration de la Chambre des communes,1393
"2HOS_10730 ",Anthony,Rota,Hon.,Speaker,-,2022/11/16,To host an event / a reception,Ottawa,19,House of Commons Food Services — Services de restauration de la Chambre des communes,1080
"2HOS_10685 ",Anthony,Rota,Hon.,Speaker,-,2022/11/21,To host a business meeting,Ottawa,6,House of Commons Food Services — Services de restauration de la Chambre des communes,404.06
"2HOS_10733 ",Anthony,Rota,Hon.,Speaker,-,2022/11/22,To host an event / a reception,Ottawa,13,House of Commons Food Services — Services de restauration de la Chambre des communes,840
"2HOS_10735 ",Anthony,Rota,Hon.,Speaker,-,2022/11/23,To host an event / a reception,Ottawa,7,House of Commons Food Services — Services de restauration de la Chambre des communes,512
"2HOS_10737 ",Anthony,Rota,Hon.,Speaker,-,2022/11/30,To host an event / a reception,Ottawa,18,House of Commons Food Services — Services de restauration de la Chambre des communes,1140
"2HOS_10725 ",Anthony,Rota,Hon.,Speaker,-,2022/12/12,To host a business meeting,Ottawa,7,House of Commons Food Services — Services de restauration de la Chambre des communes,257.88
"2HOS_10732 ",Anthony,Rota,Hon.,Speaker,-,2022/12/14,To host a business meeting,Ottawa,7,House of Commons Food Services — Services de restauration de la Chambre des communes,428.04
"2HOS_10677 ",Mark,Holland,Hon.,"House Leader, Government",Liberal,2022/06/21,To host a business meeting,Ottawa,12,CAFE DELUXE,91.2
"2HOS_10624 ",Mark,Holland,Hon.,"House Leader, Government",Liberal,2022/09/26,To host a business meeting,Ottawa,8,Colonnade Pizza,32.55
"2HOS_10639 ",Mark,Holland,Hon.,"House Leader, Government",Liberal,2022/10/03,To host a business meeting,Ottawa,8,Colonnade Pizza,32.55
"2HOS_10656 ",Mark,Holland,Hon.,"House Leader, Government",Liberal,2022/10/17,To host a business meeting,Ottawa,8,Colonnade Pizza,32.55
"2HOS_10661 ",Mark,Holland,Hon.,"House Leader, Government",Liberal,2022/10/25,To host a business meeting,Ottawa,8,Colonnade Pizza,32.55
"2HOS_10678 ",Mark,Holland,Hon.,"House Leader, Government",Liberal,2022/11/14,To host a business meeting,Ottawa,8,Colonnade Pizza,32.55
"2HOS_10700 ",Mark,Holland,Hon.,"House Leader, Government",Liberal,2022/11/28,To host a business meeting,Ottawa,7,Naples Pizza,20.7
"2HOS_10720 ",Mark,Holland,Hon.,"House Leader, Government",Liberal,2022/12/05,To host a business meeting,Ottawa,7,Colonnade Pizza,32.55
"2HOS_10523 ",Steven,MacKinnon,Hon.,"Chief Whip, Government",Liberal,2022/04/01,To meet with visitors of the office,Ottawa,0,Nespresso,71.95
"2HOS_10670 ",Steven,MacKinnon,Hon.,"Chief Whip, Government",Liberal,2022/11/02,To host a business meeting,Ottawa,2,House of Commons Food Services — Services de restauration de la Chambre des communes,67.43
"2HOS_10729 ",Steven,MacKinnon,Hon.,"Chief Whip, Government",Liberal,2022/12/14,To host a business meeting,Ottawa,2,House of Commons Food Services — Services de restauration de la Chambre des communes,95.5
"2HOS_10731 ",Steven,MacKinnon,Hon.,"Chief Whip, Government",Liberal,2022/12/15,To host a business meeting,Ottawa,12,Farinella,253.5
"2HOS_10640 ",Brenda,Shanahan,,"Caucus Chair, Government",Liberal,2022/09/11,To organize/support the national caucus meeting,Saint Andrews,100,The Algonquin Resort,526.5
"2HOS_10638 ",Brenda,Shanahan,,"Caucus Chair, Government",Liberal,2022/09/11,To organize/support the national caucus meeting,Saint Andrews,100,The Algonquin Resort,1738.62
"2HOS_10642 ",Brenda,Shanahan,,"Caucus Chair, Government",Liberal,2022/09/12,To organize/support the national caucus meeting,Saint Andrews,175,The Algonquin Resort,1842.75
"2HOS_10643 ",Brenda,Shanahan,,"Caucus Chair, Government",Liberal,2022/09/13,To organize/support the national caucus meeting,Saint Andrews,175,The Algonquin Resort,1842.75
"2HOS_10541 ",Candice,Bergen,Hon.,"Leader, Official Opposition",Conservative,2022/04/01,To meet with visitors of the office,Ottawa,0,Van Houtte Coffee Services Inc,121.1
"2HOS_10635 ",Pierre,Poilievre,Hon.,"Leader, Official Opposition",Conservative,2022/09/10,To meet with visitors of the office,Ottawa,0,House of Commons Food Services — Services de restauration de la Chambre des communes,3.9
"2HOS_10635 ",Pierre,Poilievre,Hon.,"Leader, Official Opposition",Conservative,2022/09/10,To meet with visitors of the office,Ottawa,0,Van Houtte Coffee Services Inc.,329.54
"2HOS_10635 ",Pierre,Poilievre,Hon.,"Leader, Official Opposition",Conservative,2022/09/10,To meet with visitors of the office,Ottawa,0,Pharmaprix,6.98
"2HOS_10601 ",Pierre,Poilievre,Hon.,"Leader, Official Opposition",Conservative,2022/09/19,To host a business meeting,Ottawa,3,Katharine van den Ham,150
"2HOS_10667 ",Pierre,Poilievre,Hon.,"Leader, Official Opposition",Conservative,2022/10/05,To host a business meeting,Ottawa,12,Katharine van den Ham,120
"2HOS_10671 ",Pierre,Poilievre,Hon.,"Leader, Official Opposition",Conservative,2022/10/05,To host a business meeting,Ottawa,13,Loblaws Inc.,414.89
"2HOS_10660 ",Pierre,Poilievre,Hon.,"Leader, Official Opposition",Conservative,2022/10/19,To host a business meeting,Ottawa,11,Katharine van den Ham,120
"2HOS_10668 ",Pierre,Poilievre,Hon.,"Leader, Official Opposition",Conservative,2022/10/26,To host a business meeting,Ottawa,11,Katharine van den Ham,120
"2HOS_10682 ",Pierre,Poilievre,Hon.,"Leader, Official Opposition",Conservative,2022/11/02,To host a business meeting,Ottawa,12,Katharine van den Ham,120
"2HOS_10683 ",Pierre,Poilievre,Hon.,"Leader, Official Opposition",Conservative,2022/11/16,To host a business meeting,Ottawa,8,Katharine van den Ham,120
"2HOS_10702 ",Pierre,Poilievre,Hon.,"Leader, Official Opposition",Conservative,2022/11/23,To host a business meeting,Ottawa,7,Makhaila Jade Burke,120
"2HOS_10713 ",Pierre,Poilievre,Hon.,"Leader, Official Opposition",Conservative,2022/11/30,To host a business meeting,Ottawa,9,Neveen Sourour,120
"2HOS_10738 ",Pierre,Poilievre,Hon.,"Leader, Official Opposition",Conservative,2022/12/07,To host a business meeting,Ottawa,5,Neveen Sourour,120
"2HOS_10703 ",Andrew,Scheer,Hon.,"House Leader, Official Opposition",Conservative,2022/10/25,To host a business meeting,Ottawa,25,Costco,111.15
"2HOS_10704 ",Andrew,Scheer,Hon.,"House Leader, Official Opposition",Conservative,2022/10/26,To host a business meeting,Ottawa,2,Costco,8.89
"2HOS_10705 ",Andrew,Scheer,Hon.,"House Leader, Official Opposition",Conservative,2022/11/02,To host a business meeting,Ottawa,4,Costco,17.79
"2HOS_10681 ",Andrew,Scheer,Hon.,"House Leader, Official Opposition",Conservative,2022/11/07,To host a business meeting,Ottawa,90,Gabriel Pizza,626.25
"2HOS_10706 ",Andrew,Scheer,Hon.,"House Leader, Official Opposition",Conservative,2022/11/08,To host a business meeting,Ottawa,25,Costco,111.15
"2HOS_10707 ",Andrew,Scheer,Hon.,"House Leader, Official Opposition",Conservative,2022/11/15,To host a business meeting,Ottawa,25,Costco,111.15
"2HOS_10709 ",Andrew,Scheer,Hon.,"House Leader, Official Opposition",Conservative,2022/11/22,To host a business meeting,Ottawa,12,Costco,123
"2HOS_10710 ",Andrew,Scheer,Hon.,"House Leader, Official Opposition",Conservative,2022/11/29,To host a business meeting,Ottawa,12,Costco,123
"2HOS_10712 ",Andrew,Scheer,Hon.,"House Leader, Official Opposition",Conservative,2022/12/05,To host a business meeting,Ottawa,15,Costco,153.9
"2HOS_10711 ",Andrew,Scheer,Hon.,"House Leader, Official Opposition",Conservative,2022/12/07,To host a business meeting,Ottawa,12,Costco,123
"2HOS_10724 ",Andrew,Scheer,Hon.,"House Leader, Official Opposition",Conservative,2022/12/12,To host a business meeting,Ottawa,9,House of Commons Food Services — Services de restauration de la Chambre des communes,357.87
"2HOS_10659 ",Kerry-Lynne,Findlay,Hon.,"Chief Whip, Official Opposition",Conservative,2022/09/13,To meet with visitors of the office,Ottawa,0,House of Commons Food Services — Services de restauration de la Chambre des communes,10.1
"2HOS_10659 ",Kerry-Lynne,Findlay,Hon.,"Chief Whip, Official Opposition",Conservative,2022/09/13,To meet with visitors of the office,Ottawa,0,Walmart,72.63
"2HOS_10659 ",Kerry-Lynne,Findlay,Hon.,"Chief Whip, Official Opposition",Conservative,2022/09/13,To meet with visitors of the office,Ottawa,0,Staples Professional,194.41
"2HOS_10659 ",Kerry-Lynne,Findlay,Hon.,"Chief Whip, Official Opposition",Conservative,2022/09/13,To meet with visitors of the office,Ottawa,0,Winners,13.98
"2HOS_10657 ",Kerry-Lynne,Findlay,Hon.,"Chief Whip, Official Opposition",Conservative,2022/09/20,To host a business meeting,Ottawa,100,Costco,80.91
"2HOS_10657 ",Kerry-Lynne,Findlay,Hon.,"Chief Whip, Official Opposition",Conservative,2022/09/20,To host a business meeting,Ottawa,100,IGA,315.01
"2HOS_10657 ",Kerry-Lynne,Findlay,Hon.,"Chief Whip, Official Opposition",Conservative,2022/09/20,To host a business meeting,Ottawa,100,KFC,148.15
"2HOS_10680 ",Kerry-Lynne,Findlay,Hon.,"Chief Whip, Official Opposition",Conservative,2022/10/25,To host a business meeting,Ottawa,60,Isabella Pizza,128.74
"2HOS_10672 ",Kerry-Lynne,Findlay,Hon.,"Chief Whip, Official Opposition",Conservative,2022/11/01,To host a business meeting,Ottawa,70,Isabella Pizza,189.91
"2HOS_10684 ",Kerry-Lynne,Findlay,Hon.,"Chief Whip, Official Opposition",Conservative,2022/11/14,To host a business meeting,Ottawa,1,House of Commons Food Services — Services de restauration de la Chambre des communes,97.47
"2HOS_10679 ",Kerry-Lynne,Findlay,Hon.,"Chief Whip, Official Opposition",Conservative,2022/11/15,To host a business meeting,Ottawa,75,Isabella Pizza,236
"2HOS_10698 ",Kerry-Lynne,Findlay,Hon.,"Chief Whip, Official Opposition",Conservative,2022/11/22,To host a business meeting,Ottawa,70,Isabella Pizza,218.39
"2HOS_10699 ",Kerry-Lynne,Findlay,Hon.,"Chief Whip, Official Opposition",Conservative,2022/11/25,To host a business meeting,Vancouver,1,Fairmont Waterfront,37
"2HOS_10721 ",Kerry-Lynne,Findlay,Hon.,"Chief Whip, Official Opposition",Conservative,2022/12/06,To host an event / a reception,Ottawa,16,Madison's New York Grill & Bar,1116.89
"2HOS_10736 ",Kerry-Lynne,Findlay,Hon.,"Chief Whip, Official Opposition",Conservative,2022/12/07,To host a business meeting,Ottawa,50,Isabella Pizza,188.45
"2HOS_10739 ",Kerry-Lynne,Findlay,Hon.,"Chief Whip, Official Opposition",Conservative,2022/12/13,To host a business meeting,Ottawa,100,IGA,321.1
"2HOS_10630 ",Scott,Reid,,"Caucus Chair, Official Opposition",Conservative,2022/05/04,To organize/support the national caucus meeting,Ottawa,100,House of Commons Food Services — Services de restauration de la Chambre des communes,162.5
"2HOS_10631 ",Scott,Reid,,"Caucus Chair, Official Opposition",Conservative,2022/05/11,To organize/support the national caucus meeting,Ottawa,100,House of Commons Food Services — Services de restauration de la Chambre des communes,162.5
"2HOS_10632 ",Scott,Reid,,"Caucus Chair, Official Opposition",Conservative,2022/06/15,To organize/support the national caucus meeting,Ottawa,100,House of Commons Food Services — Services de restauration de la Chambre des communes,162.5
"2HOS_10633 ",Scott,Reid,,"Caucus Chair, Official Opposition",Conservative,2022/06/22,To organize/support the national caucus meeting,Ottawa,100,House of Commons Food Services — Services de restauration de la Chambre des communes,162.5
"2HOS_10648 ",Scott,Reid,,"Caucus Chair, Official Opposition",Conservative,2022/09/12,To organize/support the national caucus meeting,Ottawa,130,House of Commons Food Services — Services de restauration de la Chambre des communes,502
"2HOS_10650 ",Scott,Reid,,"Caucus Chair, Official Opposition",Conservative,2022/09/12,To organize/support the national caucus meeting,Ottawa,100,House of Commons Food Services — Services de restauration de la Chambre des communes,162.5
"2HOS_10649 ",Scott,Reid,,"Caucus Chair, Official Opposition",Conservative,2022/09/21,To organize/support the national caucus meeting,Ottawa,100,House of Commons Food Services — Services de restauration de la Chambre des communes,162.5
"2HOS_10691 ",Scott,Reid,,"Caucus Chair, Official Opposition",Conservative,2022/09/28,To organize/support the national caucus meeting,Ottawa,100,House of Commons Food Services — Services de restauration de la Chambre des communes,162.5
"2HOS_10692 ",Scott,Reid,,"Caucus Chair, Official Opposition",Conservative,2022/10/05,To organize/support the national caucus meeting,Ottawa,100,House of Commons Food Services — Services de restauration de la Chambre des communes,162.5
"2HOS_10693 ",Scott,Reid,,"Caucus Chair, Official Opposition",Conservative,2022/10/19,To organize/support the national caucus meeting,Ottawa,100,House of Commons Food Services — Services de restauration de la Chambre des communes,162.5
"2HOS_10694 ",Scott,Reid,,"Caucus Chair, Official Opposition",Conservative,2022/10/26,To organize/support the national caucus meeting,Ottawa,100,House of Commons Food Services — Services de restauration de la Chambre des communes,162.5
"2HOS_10695 ",Scott,Reid,,"Caucus Chair, Official Opposition",Conservative,2022/11/02,To organize/support the national caucus meeting,Ottawa,100,House of Commons Food Services — Services de restauration de la Chambre des communes,162.5
"2HOS_10696 ",Scott,Reid,,"Caucus Chair, Official Opposition",Conservative,2022/11/16,To organize/support the national caucus meeting,Ottawa,100,House of Commons Food Services — Services de restauration de la Chambre des communes,162.5
"2HOS_10697 ",Scott,Reid,,"Caucus Chair, Official Opposition",Conservative,2022/11/23,To organize/support the national caucus meeting,Ottawa,100,House of Commons Food Services — Services de restauration de la Chambre des communes,162.5
"2HOS_10722 ",Scott,Reid,,"Caucus Chair, Official Opposition",Conservative,2022/11/30,To organize/support the national caucus meeting,Ottawa,100,House of Commons Food Services — Services de restauration de la Chambre des communes,162.5
"2HOS_10545 ",Yves-François,Blanchet,,"Leader, Other Opposition Party",Bloc Québécois,2022/04/01,To meet with visitors of the office,Ottawa,0,Nespresso,275
"2HOS_10545 ",Yves-François,Blanchet,,"Leader, Other Opposition Party",Bloc Québécois,2022/04/01,To meet with visitors of the office,Ottawa,0,House of Commons Food Services — Services de restauration de la Chambre des communes,27.74
"2HOS_10647 ",Yves-François,Blanchet,,"Leader, Other Opposition Party",Bloc Québécois,2022/10/05,To host a business meeting,Gatineau,2,La Squadra,184.49
"2HOS_10676 ",Yves-François,Blanchet,,"Leader, Other Opposition Party",Bloc Québécois,2022/11/09,To host a business meeting,Outremont,2,Chez Leveque,138.98
"2HOS_10714 ",Yves-François,Blanchet,,"Leader, Other Opposition Party",Bloc Québécois,2022/11/30,To host a business meeting,Gatineau,3,Le Cellier,260.45
"2HOS_10715 ",Yves-François,Blanchet,,"Leader, Other Opposition Party",Bloc Québécois,2022/12/05,To meet with stakeholders,Vaudreuil-Dorion,1,ZIBO,99.01
"2HOS_10716 ",Yves-François,Blanchet,,"Leader, Other Opposition Party",Bloc Québécois,2022/12/06,To meet with stakeholders,Ottawa,1,House of Commons Food Services — Services de restauration de la Chambre des communes,105.13
"2HOS_10506 ",Alain,Therrien,,"House Leader, Other Opposition Party",Bloc Québécois,2022/03/30,To host a business meeting,Gatineau,3,St-Hubert,60.92
"2HOS_10673 ",Alain,Therrien,,"House Leader, Other Opposition Party",Bloc Québécois,2022/04/01,To meet with visitors of the office,Ottawa,0,Nespresso,100.4
"2HOS_10634 ",Alain,Therrien,,"House Leader, Other Opposition Party",Bloc Québécois,2022/09/29,To host a business meeting,Ottawa,3,Nate's Deli,89.42
"2HOS_10646 ",Alain,Therrien,,"House Leader, Other Opposition Party",Bloc Québécois,2022/10/05,To host a business meeting,Gatineau,1,La Squadra,64.49
"2HOS_10669 ",Alain,Therrien,,"House Leader, Other Opposition Party",Bloc Québécois,2022/11/03,To host a business meeting,Ottawa,2,Nate's Deli,39.74
"2HOS_10637 ",Claude,DeBellefeuille,,"Chief Whip, Other Opposition Party",Bloc Québécois,2022/09/13,To host a business meeting,Saint-Eustache,7,Bistro Martini Grill,347.04
"2HOS_10654 ",Claude,DeBellefeuille,,"Chief Whip, Other Opposition Party",Bloc Québécois,2022/09/19,To meet with visitors of the office,Ottawa,15,IGA,55.97
"2HOS_10655 ",Claude,DeBellefeuille,,"Chief Whip, Other Opposition Party",Bloc Québécois,2022/09/20,To meet with visitors of the office,Ottawa,15,Georges Farah,19.98
"2HOS_10665 ",Claude,DeBellefeuille,,"Chief Whip, Other Opposition Party",Bloc Québécois,2022/10/05,To meet with visitors of the office,Ottawa,20,House of Commons Food Services — Services de restauration de la Chambre des communes,35
"2HOS_10718 ",Claude,DeBellefeuille,,"Chief Whip, Other Opposition Party",Bloc Québécois,2022/11/24,To host a business meeting,Ottawa,2,House of Commons Food Services — Services de restauration de la Chambre des communes,185.32
"2HOS_10717 ",Claude,DeBellefeuille,,"Chief Whip, Other Opposition Party",Bloc Québécois,2022/11/29,To host a business meeting,Ottawa,5,House of Commons Food Services — Services de restauration de la Chambre des communes,281.6
"2HOS_10743 ",Claude,DeBellefeuille,,"Chief Whip, Other Opposition Party",Bloc Québécois,2022/12/06,To host a business meeting,Ottawa,2,House of Commons Food Services — Services de restauration de la Chambre des communes,226.24
"2HOS_10744 ",Claude,DeBellefeuille,,"Chief Whip, Other Opposition Party",Bloc Québécois,2022/12/11,To host an event / a reception,Ottawa,30,Costco,41.97
"2HOS_10719 ",Claude,DeBellefeuille,,"Chief Whip, Other Opposition Party",Bloc Québécois,2022/12/21,To host a business meeting,Ottawa,2,House of Commons Food Services — Services de restauration de la Chambre des communes,120.34
"2HOS_10666 ",Marie-Hélène,Gaudreau,,"Caucus Chair, Other Opposition Party",Bloc Québécois,2022/09/15,To organize/support the national caucus meeting,Ottawa,45,House of Commons Food Services — Services de restauration de la Chambre des communes,124.5
"2HOS_10741 ",Marie-Hélène,Gaudreau,,"Caucus Chair, Other Opposition Party",Bloc Québécois,2022/11/02,To host a business meeting,Ottawa,3,House of Commons Food Services — Services de restauration de la Chambre des communes,244.43
"2HOS_10740 ",Marie-Hélène,Gaudreau,,"Caucus Chair, Other Opposition Party",Bloc Québécois,2022/11/12,To organize/support the national caucus meeting,Granby,32,Hôtel Castel,968.86
"2HOS_10742 ",Marie-Hélène,Gaudreau,,"Caucus Chair, Other Opposition Party",Bloc Québécois,2022/11/30,To host a business meeting,Ottawa,2,House of Commons Food Services — Services de restauration de la Chambre des communes,115.83
"2HOS_10623 ",Jagmeet,Singh,,"Leader, Other Opposition Party",New Democratic Party,2022/09/07,To organize/support the national caucus meeting,Halifax,150,Hotel Halifax,2830.33
"2HOS_10628 ",Jagmeet,Singh,,"Leader, Other Opposition Party",New Democratic Party,2022/09/07,To organize/support the national caucus meeting,Halifax,40,Hotel Halifax,830.31
"2HOS_10625 ",Jagmeet,Singh,,"Leader, Other Opposition Party",New Democratic Party,2022/09/08,To organize/support the national caucus meeting,Halifax,40,Hotel Halifax,2152.11
"2HOS_10626 ",Jagmeet,Singh,,"Leader, Other Opposition Party",New Democratic Party,2022/09/09,To organize/support the national caucus meeting,Halifax,40,Hotel Halifax,4356.82
"2HOS_10627 ",Jagmeet,Singh,,"Leader, Other Opposition Party",New Democratic Party,2022/09/10,To organize/support the national caucus meeting,Halifax,40,Hotel Halifax,1660.62
"2HOS_10636 ",Jagmeet,Singh,,"Leader, Other Opposition Party",New Democratic Party,2022/09/13,To host a business meeting,Thunder Bay,3,Nortenos Taqueria,78.88
"2HOS_10596 ",Jagmeet,Singh,,"Leader, Other Opposition Party",New Democratic Party,2022/09/23,To meet with stakeholders,Burnaby,4,ChongQing on Kingsway,102.55
"2HOS_10653 ",Jagmeet,Singh,,"Leader, Other Opposition Party",New Democratic Party,2022/10/01,To host a business meeting,Vancouver,13,Pink Pearl Restaurant,191.22
"2HOS_10658 ",Jagmeet,Singh,,"Leader, Other Opposition Party",New Democratic Party,2022/10/22,To meet with stakeholders,Ottawa,1,Canadian Parliamentary Press Gallery — Tribune de la presse parlementaire canadienne,138.1
"2HOS_10689 ",Jagmeet,Singh,,"Leader, Other Opposition Party",New Democratic Party,2022/11/15,To host a business meeting,Ottawa,2,Le Moulin de Provence,13.53
"2HOS_10690 ",Jagmeet,Singh,,"Leader, Other Opposition Party",New Democratic Party,2022/11/15,To host a business meeting,Ottawa,2,House of Commons Food Services — Services de restauration de la Chambre des communes,9.8
"2HOS_10726 ",Jagmeet,Singh,,"Leader, Other Opposition Party",New Democratic Party,2022/11/30,To host a business meeting,Ottawa,3,Punjabi Canteen,13.99
"2HOS_10734 ",Jagmeet,Singh,,"Leader, Other Opposition Party",New Democratic Party,2022/12/09,To meet with stakeholders,Sainte-Anne-des-Monts,31,Auberge La Seigneurie des Monts,1136
"2HOS_10662 ",Rachel,Blaney,,"Chief Whip, Other Opposition Party",New Democratic Party,2022/10/27,To host a business meeting,Ottawa,13,Tim Hortons,30.41
